bitfinex-derivatives/quotes_BTCF0:USTF0_20250805
["timestamp","ask_amount","ask_price","bid_price","bid_amount"]
[1754357984769,1.8067458,114900.0,114890.0,0.91645079]
[1754357984965,1.4012887,114900.0,114890.0,0.91645079]
[1754357985167,1.8067458,114900.0,114890.0,0.92548079]
[1754357985366,1.8067458,114900.0,114890.0,0.94917079]
[1754357985565,1.4459458,114900.0,114890.0,0.94917079]
[1754357986561,1.4459458,114900.0,114890.0,0.35473079]
[1754357986761,1.8067458,114900.0,114890.0,0.75127669]
[1754357986961,1.8067458,114900.0,114890.0,0.74224669]
[1754357987262,1.8067458,114900.0,114890.0,0.91633049]
[1754357987454,1.8067458,114900.0,114890.0,0.84393049]
[1754357987660,1.8067458,114900.0,114890.0,0.66984669]
[1754357987860,1.8067458,114900.0,114890.0,0.07552669]
[1754357987861,2.2122029,114900.0,114890.0,0.07552669]
[1754357988062,1.4012887,114900.0,114890.0,0.66972669]
[1754357988261,2.2122029,114900.0,114890.0,0.66972669]
[1754357988969,1.8067458,114900.0,114890.0,0.66972669]
[1754357989169,1.8067458,114900.0,114890.0,0.07552669]
[1754357989358,0.1740991,114880.0,114870.0,0.37856211]
[1754357989558,1.0595562,114880.0,114870.0,0.61204211]
[1754357989971,1.0595562,114880.0,114870.0,0.01776211]
[1754357990165,1.0595562,114880.0,114870.0,0.61212211]
[1754357990363,1.3090562,114880.0,114870.0,0.78623631]
[1754357990672,1.3090562,114880.0,114870.0,0.83736631]
[1754357991180,1.3090562,114880.0,114870.0,0.90647492]
[1754357991564,0.9035991,114880.0,114870.0,1.37519202]
[1754357992065,0.9035991,114880.0,114870.0,0.96973492]
[1754357992265,0.5427991,114880.0,114870.0,1.73599202]
[1754357992469,0.423599,114880.0,114870.0,2.14144912]
[1754357992776,0.2495,114880.0,114870.0,2.14144912]
[1754357993266,0.14234,114880.0,114870.0,2.58035311]
[1754357994566,0.14234,114880.0,114870.0,2.68963397]
[1754357995671,0.14234,114880.0,114870.0,2.58035311]
[1754357996172,0.02461,114900.0,114890.0,0.1740841]
[1754357996367,0.02461,114900.0,114890.0,1.5526249]
[1754357996567,0.1986789,114900.0,114890.0,1.5526249]
[1754357996771,0.3410789,114900.0,114890.0,1.66219662]
[1754357997274,0.3164689,114900.0,114890.0,1.66219662]
[1754357997475,0.3881389,114900.0,114890.0,1.66219662]
[1754357997675,0.4143389,114900.0,114890.0,1.66219662]
[1754357998068,0.4163389,114900.0,114890.0,1.66219662]
[1754357998274,0.4376689,114900.0,114890.0,0.9580649]
[1754357998478,0.4376689,114900.0,114890.0,1.5524249]
[1754357998677,0.4386689,114900.0,114890.0,1.5524249]
[1754357999175,0.4386689,114900.0,114890.0,1.66195354]
[1754357999676,0.4386689,114900.0,114890.0,1.5524249]
[1754358000175,0.4386689,114900.0,114890.0,0.9580649]
[1754358000373,0.4386689,114900.0,114890.0,0.66214179]
[1754358000578,0.844126,114900.0,114890.0,0.72181769]
[1754358000878,0.844126,114900.0,114890.0,0.89590189]
[1754358001063,0.4386689,114900.0,114890.0,0.7863679]
[1754358001476,0.4386689,114900.0,114890.0,0.1918079]
[1754358001676,0.4411189,114900.0,114890.0,0.7864079]
[1754358001977,0.4411189,114900.0,114890.0,0.7863679]
[1754358002478,0.4411189,114900.0,114890.0,0.7863279]
[1754358003073,0.4411189,114900.0,114890.0,1.191785]
[1754358005571,0.4411189,114900.0,114890.0,0.7863279]
[1754358005770,0.4411189,114900.0,114890.0,1.191785]
[1754358006079,0.4411189,114900.0,114890.0,0.7863279]
[1754358006267,0.4411189,114900.0,114890.0,1.191785]
[1754358009284,0.4411189,114900.0,114890.0,0.7863279]
[1754358009482,0.4411189,114900.0,114890.0,1.191785]
[1754358011179,0.4411189,114900.0,114890.0,1.30131899]
[1754358011890,0.4411189,114900.0,114890.0,1.12723479]
[1754358012186,0.4411189,114900.0,114890.0,0.72177769]
[1754358012385,0.4411189,114900.0,114890.0,0.89586179]
[1754358012585,0.4411189,114900.0,114890.0,1.30131889]
[1754358012778,0.4411189,114900.0,114890.0,1.66211889]
[1754358013288,0.3440789,114900.0,114890.0,1.66211889]
[1754358013896,0.4405689,114900.0,114890.0,1.5525849]
[1754358014682,0.4405689,114900.0,114890.0,1.5526249]
[1754358018989,0.4405689,114900.0,114890.0,0.9580649]
[1754358019287,0.846026,114900.0,114890.0,1.1469677]
[1754358019892,0.4405689,114900.0,114890.0,1.1469677]
[1754358020690,0.3426989,114900.0,114890.0,1.5524248]
[1754358021287,0.3426989,114900.0,114890.0,1.66192175]
[1754358024589,0.3426989,114900.0,114890.0,1.5524248]
[1754358025992,0.3426989,114900.0,114890.0,1.1916248]
[1754358026194,0.3426989,114900.0,114890.0,1.5524248]
[1754358026792,0.3426989,114900.0,114890.0,1.66192175]
[1754358028095,0.3776389,114900.0,114890.0,1.66192175]
[1754358028392,0.4025489,114900.0,114890.0,1.66192175]
[1754358028593,0.4173789,114900.0,114890.0,1.30112175]
[1754358028896,0.4391889,114900.0,114890.0,1.30112175]
[1754358034298,0.26512,114900.0,114890.0,1.66192175]
[1754358034500,0.26512,114900.0,114890.0,1.25646465]
[1754358034799,0.4391888,114900.0,114890.0,1.5524248]
[1754358034996,0.4391888,114900.0,114890.0,1.70894097]
[1754358036101,0.4391888,114900.0,114890.0,1.11458097]
[1754358036299,0.4391888,114900.0,114890.0,1.70850097]
[1754358036700,0.16863,114900.0,114890.0,1.70850097]
[1754358038803,0.16863,114900.0,114890.0,1.97330097]
[1754358039299,0.342699,114900.0,114890.0,1.37938097]
[1754358039603,0.438719,114900.0,114890.0,1.97342097]
[1754358039900,0.8441761,114900.0,114890.0,0.97392387]
[1754358040102,0.8441761,114900.0,114890.0,1.56796387]
[1754358040302,0.8441761,114900.0,114890.0,1.20716387]
[1754358041001,0.438719,114900.0,114890.0,1.20716387]
[1754358042902,0.438719,114900.0,114890.0,1.61262097]
[1754358044605,0.438719,114900.0,114890.0,1.4561048]
[1754358044806,0.438719,114900.0,114890.0,1.1913048]
[1754358049403,0.18492,114900.0,114890.0,1.1913048]
[1754358049606,0.16818,114900.0,114890.0,1.1913048]
[1754358050014,0.16818,114900.0,114890.0,0.7858477]
[1754358050208,0.342249,114900.0,114890.0,0.5972648]
[1754358050516,0.438269,114900.0,114890.0,1.1911848]
[1754358050707,0.16818,114900.0,114890.0,1.5519848]
[1754358052318,0.16818,114900.0,114890.0,1.5342611]
[1754358052319,0.1454,114900.0,114890.0,1.5342611]
[1754358052612,0.1454,114900.0,114890.0,1.64393338]
[1754358052814,0.1454,114900.0,114890.0,1.90873338]
[1754358053210,0.1454,114900.0,114890.0,2.31419048]
[1754358053410,0.1454,114900.0,114890.0,1.7990611]
[1754358053611,0.1454,114900.0,114890.0,2.2045182]
[1754358053817,0.1454,114900.0,114890.0,2.3785902]
[1754358054715,0.1454,114900.0,114890.0,1.9731331]
[1754358055518,0.1454,114900.0,114890.0,1.3792131]
[1754358055817,0.16818,114900.0,114890.0,1.7991411]
[1754358057016,0.3681987,114900.0,114890.0,1.7991411]
[1754358057320,0.4382687,114900.0,114890.0,1.7991411]
[1754358057519,0.4382687,114900.0,114890.0,1.7991011]
[1754358061421,0.4382687,114900.0,114890.0,1.5343011]
[1754358062015,0.2642,114900.0,114890.0,1.5343011]
[1754358062321,0.16818,114900.0,114890.0,1.5343011]
[1754358063319,0.16818,114900.0,114890.0,1.69081727]
[1754358064125,0.16924,114900.0,114890.0,1.69081727]
[1754358066921,0.19448,114900.0,114890.0,1.69081727]
[1754358067224,0.19448,114900.0,114890.0,1.5343011]
[1754358067821,0.16924,114900.0,114890.0,1.5343011]
[1754358068021,0.16924,114900.0,114890.0,1.69081727]
[1754358068427,0.1454,114900.0,114890.0,1.69081727]
[1754358068828,0.16924,114900.0,114890.0,1.69081727]
[1754358072228,0.19448,114900.0,114890.0,1.69081727]
[1754358072417,0.22603,114900.0,114890.0,1.69081727]
[1754358072726,0.24773,114900.0,114890.0,1.69081727]
[1754358073029,0.436409,114900.0,114890.0,1.5341811]
[1754358073232,0.436409,114900.0,114890.0,1.128724]
[1754358073423,0.436409,114900.0,114890.0,1.5341811]
[1754358074527,0.26234,114900.0,114890.0,1.69069727]
[1754358074833,0.436409,114900.0,114890.0,1.69069727]
[1754358075226,0.436409,114900.0,114890.0,1.09685727]
[1754358075528,0.436409,114900.0,114890.0,1.69069727]
[1754358077532,0.436409,114900.0,114890.0,1.09685727]
[1754358077730,0.436409,114900.0,114890.0,1.69069727]
[1754358078035,0.26234,114900.0,114890.0,1.69069727]
[1754358078634,0.26234,114900.0,114890.0,1.5341811]
[1754358080437,0.436409,114900.0,114890.0,0.9403411]
[1754358080738,0.436409,114900.0,114890.0,1.5341811]
[1754358080937,0.26234,114900.0,114890.0,1.5341811]
[1754358081934,0.436409,114900.0,114890.0,1.5341811]
[1754358083433,0.26234,114900.0,114890.0,1.5341811]
[1754358084037,0.24773,114900.0,114890.0,1.5341811]
[1754358084338,0.1454,114900.0,114890.0,1.69069727]
[1754358084935,0.16924,114900.0,114890.0,1.69069727]
[1754358085841,0.1454,114900.0,114890.0,2.09615437]
[1754358086037,0.16924,114900.0,114890.0,2.09615437]
[1754358086336,0.16924,114900.0,114890.0,1.69069727]
[1754358087033,0.1454,114900.0,114890.0,2.09615437]
[1754358087434,0.1454,114900.0,114890.0,1.9396382]
[1754358088640,0.16924,114900.0,114890.0,1.5341811]
[1754358089038,0.16924,114900.0,114890.0,1.128724]
[1754358089234,0.16924,114900.0,114890.0,1.5341811]
[1754358092536,0.16924,114900.0,114890.0,1.73719465]
[1754358094842,0.16924,114900.0,114890.0,1.5341811]
[1754358095035,0.21653,114900.0,114890.0,0.9403411]
[1754358095236,0.26326,114900.0,114890.0,1.5341411]
[1754358095542,0.437329,114900.0,114890.0,0.9403411]
[1754358095744,0.437329,114900.0,114890.0,1.5341411]
[1754358095938,0.437329,114900.0,114890.0,1.69083626]
[1754358098046,0.437329,114900.0,114890.0,0.51749516]
[1754358098238,1.2035861,114900.0,114890.0,0.86018014]
[1754358098438,1.2035861,114900.0,114890.0,0.70348498]
[1754358098639,1.2035861,114900.0,114890.0,0.5938]
[1754358099234,0.798129,114900.0,114890.0,0.5938]
[1754358099440,0.437329,114900.0,114890.0,0.5938]
[1754358099640,0.437329,114900.0,114890.0,0.7678841]
[1754358100142,0.437329,114900.0,114890.0,0.5938]
[1754358100346,0.437329,114900.0,114890.0,0.7678841]
[1754358103645,0.437329,114900.0,114890.0,0.1740841]
[1754358104046,0.437329,114900.0,114890.0,0.7679241]
[1754358106852,0.437329,114900.0,114890.0,0.1740841]
[1754358107058,0.437329,114900.0,114890.0,0.7679241]
[1754358108456,0.798129,114900.0,114890.0,0.7679241]
[1754358112960,0.437329,114900.0,114890.0,0.1740841]
[1754358113161,0.437329,114900.0,114890.0,0.7679241]
[1754358113650,0.437329,114900.0,114890.0,1.1733812]
[1754358113853,0.437329,114900.0,114890.0,0.5795412]
[1754358114053,0.437329,114900.0,114890.0,1.5341812]
[1754358114457,0.437329,114900.0,114890.0,1.64370006]
[1754358114956,0.437329,114900.0,114890.0,1.23824296]
[1754358115156,0.437329,114900.0,114890.0,1.64370006]
[1754358115663,0.437329,114900.0,114890.0,1.04986006]
[1754358115855,0.437329,114900.0,114890.0,1.64370006]
[1754358116056,0.437329,114900.0,114890.0,1.23824296]
[1754358116958,0.437329,114900.0,114890.0,0.87744296]
[1754358117658,0.437329,114900.0,114890.0,1.23824296]
[1754358118457,0.437329,114900.0,114890.0,0.87744296]
[1754358122362,0.437329,114900.0,114890.0,1.64370006]
[1754358122666,0.70749731,114900.0,114890.0,1.50841127]
[1754358122865,0.437329,114900.0,114890.0,1.50841127]
[1754358124569,0.437329,114900.0,114890.0,1.39889241]
[1754358125169,0.1454,114900.0,114890.0,1.66906072]
[1754358125668,0.17024,114900.0,114890.0,1.66906072]
[1754358125967,0.17024,114900.0,114890.0,1.82575588]
[1754358127165,0.1454,114900.0,114890.0,1.82575588]
[1754358128172,0.1454,114900.0,114890.0,1.66906072]
[1754358128561,0.1444,114900.0,114890.0,1.66906072]
[1754358128767,0.1424,114900.0,114890.0,1.39978205]
[1754358129069,0.1424,114900.0,114890.0,1.40078205]
[1754358130271,0.1424,114900.0,114890.0,1.51044941]
[1754358130473,0.1424,114900.0,114890.0,2.04530736]
[1754358130777,0.1424,114900.0,114890.0,1.93564]
[1754358133472,0.1424,114900.0,114890.0,1.66558205]
[1754358134679,0.1424,114900.0,114890.0,2.109712]
[1754358134878,0.1182891,114900.0,114890.0,2.109712]
[1754358135075,0.11425498,114900.0,114890.0,2.109712]
[1754358136387,0.09765518,114900.0,114890.0,2.109712]
[1754358137577,0.09414,114930.0,114920.0,0.2131582]
[1754358137779,0.09414,114930.0,114920.0,1.54711026]
[1754358137985,0.29894,114930.0,114920.0,1.54711026]
[1754358138285,0.25191,114930.0,114920.0,1.54706302]
[1754358138483,0.2048,114930.0,114920.0,1.55585375]
[1754358138678,0.2048,114930.0,114920.0,1.44648688]
[1754358138880,0.2048,114930.0,114920.0,1.55584107]
[1754358139076,0.2088,114930.0,114920.0,1.55584107]
[1754358140082,0.2088,114930.0,114920.0,1.82064107]
[1754358140387,0.2108,114930.0,114920.0,3.02953902]
[1754358140980,0.2108,114930.0,114920.0,2.92018483]
[1754358141175,0.2108,114930.0,114920.0,3.02944708]
[1754358141585,0.2108,114930.0,114920.0,2.92018483]
[1754358141984,0.2108,114930.0,114920.0,2.65012688]
[1754358142288,0.23564,114930.0,114920.0,2.75930816]
[1754358143477,0.23564,114930.0,114920.0,2.48925021]
[1754358143680,0.23564,114930.0,114920.0,2.75930816]
[1754358143975,0.28275,114930.0,114920.0,2.46516021]
[1754358144181,0.32978,114930.0,114920.0,2.75922816]
[1754358144886,0.31617,114930.0,114920.0,2.75922816]
[1754358145086,0.23564,114930.0,114920.0,2.75922816]
[1754358145288,0.27874,114930.0,114920.0,2.75922816]
[1754358146276,0.24532,114930.0,114920.0,2.65004688]
[1754358146680,0.32978,114930.0,114920.0,2.65004688]
[1754358147488,0.32978,114930.0,114920.0,2.65000688]
[1754358148191,0.32978,114930.0,114920.0,2.75918816]
[1754358148997,0.31617,114930.0,114920.0,2.75918816]
[1754358149290,0.24532,114930.0,114920.0,2.75918816]
[1754358149588,0.32978,114930.0,114920.0,2.75918816]
[1754358149989,0.32978,114930.0,114920.0,2.16562816]
[1754358150182,0.32978,114930.0,114920.0,2.64996688]
[1754358150879,0.29235,114930.0,114920.0,2.64996688]
[1754358151890,0.2108,114930.0,114920.0,2.64996688]
[1754358152090,0.27599,114930.0,114920.0,2.64996688]
[1754358152289,0.32814,114930.0,114920.0,2.05644688]
[1754358152484,0.32814,114930.0,114920.0,2.64996688]
[1754358152686,0.32814,114930.0,114920.0,2.65079688]
[1754358155188,0.5021631,114930.0,114920.0,2.05727688]
[1754358155494,0.5021631,114930.0,114920.0,2.62591688]
[1754358155793,0.5021631,114930.0,114920.0,2.65075688]
[1754358156290,0.32814,114930.0,114920.0,2.65075688]
[1754358156594,0.5021629,114930.0,114920.0,2.65075688]
[1754358157588,0.5021629,114930.0,114920.0,2.28995688]
[1754358157789,0.5021629,114930.0,114920.0,2.65075688]
[1754358160096,0.5021629,114930.0,114920.0,2.91555688]
[1754358160395,0.2108,114930.0,114920.0,2.91555688]
[1754358160797,0.2108,114930.0,114920.0,3.18561483]
[1754358162387,0.2108,114930.0,114920.0,2.59213483]
[1754358162587,0.2108,114930.0,114920.0,2.32207688]
[1754358162790,0.29014,114930.0,114920.0,2.91555688]
[1754358163491,0.24424,114930.0,114920.0,2.91555688]
[1754358163696,0.2108,114930.0,114920.0,3.18561483]
[1754358164895,0.2108,114930.0,114920.0,2.91555688]
[1754358165503,0.28024,114930.0,114920.0,2.91555688]
[1754358165700,0.32614,114930.0,114920.0,2.91555688]
[1754358166599,0.2088,114930.0,114920.0,2.91555688]
[1754358166798,0.2098,114930.0,114920.0,3.18561483]
[1754358168304,0.2058,114930.0,114920.0,3.18661483]
[1754358168908,0.2048,114930.0,114920.0,3.18661483]
[1754358173013,0.2048,114930.0,114920.0,2.91655688]
[1754358173014,0.26999,114930.0,114920.0,2.91655688]
[1754358173515,0.23824,114930.0,114920.0,2.91655688]
[1754358173718,0.22866,114930.0,114920.0,2.91655688]
[1754358173917,0.22866,114930.0,114920.0,3.18661483]
[1754358176619,0.2048,114930.0,114920.0,3.18661483]
[1754358179522,0.2048,114930.0,114920.0,3.29579611]
[1754358180220,0.3783189,114960.0,114950.0,0.2150228]
[1754358180417,0.3783189,114960.0,114950.0,1.07848075]
[1754358180611,0.2913265,114960.0,114950.0,1.43928075]
[1754358181318,0.07144,114960.0,114950.0,1.77847415]
[1754358181522,0.01954674,114970.0,114960.0,0.2127276]
[1754358181719,0.04408674,114970.0,114960.0,1.22282478]
[1754358181917,0.12452674,114970.0,114960.0,1.22282478]
[1754358182118,0.14082674,114970.0,114960.0,1.22282478]
[1754358182320,0.31478934,114970.0,114960.0,1.22282478]
[1754358182530,0.31478934,114970.0,114960.0,1.1136435]
[1754358183224,0.31478934,114970.0,114960.0,0.84358555]
[1754358185627,0.31478934,114970.0,114960.0,0.82102555]
[1754358185826,0.31478934,114970.0,114960.0,0.84358555]
[1754358187825,0.31478934,114970.0,114960.0,0.82102555]
[1754358188024,0.31478934,114970.0,114960.0,0.5509676]
[1754358188218,0.31478934,114970.0,114960.0,1.41434555]
[1754358188824,0.31478934,114970.0,114960.0,1.43690555]
[1754358189221,0.31478934,114970.0,114960.0,1.41434555]
[1754358189619,0.31478934,114970.0,114960.0,1.52352683]
[1754358190927,0.31478934,114970.0,114960.0,1.25346888]
[1754358191125,0.31478934,114970.0,114960.0,1.50733683]
[1754358191325,0.31478934,114970.0,114960.0,1.23727888]
[1754358191533,0.31478934,114970.0,114960.0,1.50733683]
[1754358192032,0.31478934,114970.0,114960.0,1.52989683]
[1754358192534,0.31478934,114970.0,114960.0,1.42071555]
[1754358192728,0.31478934,114970.0,114960.0,1.68551555]
[1754358193831,0.31478934,114970.0,114960.0,1.42071555]
[1754358194531,0.31478934,114970.0,114960.0,1.52989683]
[1754358195837,0.25028934,114970.0,114960.0,1.52989683]
[1754358196134,0.29848934,114970.0,114960.0,1.52989683]
[1754358196336,0.31478934,114970.0,114960.0,1.52989683]
[1754358197737,0.31478934,114970.0,114960.0,1.42071555]
[1754358198138,0.31478934,114970.0,114960.0,1.52989683]
[1754358200033,0.31478934,114970.0,114960.0,1.52299683]
[1754358200235,0.31478934,114970.0,114960.0,1.41381555]
[1754358200438,0.31478934,114970.0,114960.0,1.43637555]
[1754358201438,0.31478934,114970.0,114960.0,0.84317555]
[1754358201741,0.31478934,114970.0,114960.0,1.43637555]
[1754358205442,0.31478934,114970.0,114960.0,0.84317555]
[1754358205642,0.31478934,114970.0,114960.0,1.43637555]
[1754358209540,0.31478934,114970.0,114960.0,1.1663176]
[1754358209745,0.31478934,114970.0,114960.0,1.43637555]
[1754358209948,0.31478934,114970.0,114960.0,1.54555683]
[1754358211342,0.31478934,114970.0,114960.0,1.54551683]
[1754358211643,0.31478934,114970.0,114960.0,0.68229888]
[1754358211841,0.31478934,114970.0,114960.0,0.89209858]
[1754358212446,0.31478934,114970.0,114960.0,0.91576858]
[1754358213546,0.31478934,114970.0,114960.0,1.18582653]
[1754358214638,0.31478934,114970.0,114960.0,1.07664525]
[1754358215045,0.31478934,114970.0,114960.0,1.05297525]
[1754358215242,0.31478934,114970.0,114960.0,0.45981525]
[1754358215438,0.31478934,114970.0,114960.0,1.05297525]
[1754358215744,0.58484729,114970.0,114960.0,0.01578]
[1754358215947,0.94564729,114970.0,114960.0,0.6089]
[1754358216147,0.94564729,114970.0,114960.0,0.89245278]
[1754358216353,0.67558934,114970.0,114960.0,0.89245278]
[1754358216646,1.19496122,114970.0,114960.0,1.16232466]
[1754358217549,1.19496122,114970.0,114960.0,0.87667278]
[1754358217744,1.19496122,114970.0,114960.0,0.55342466]
[1754358217946,1.19696122,114970.0,114960.0,0.87667278]
[1754358218447,1.20096122,114970.0,114960.0,0.89332278]
[1754358218746,1.20096879,114970.0,114960.0,0.89332278]
[1754358219545,1.20096879,114970.0,114960.0,0.30020278]
[1754358219750,1.20096879,114970.0,114960.0,0.89336278]
[1754358221146,0.57028934,114970.0,114960.0,0.91703278]
[1754358221352,0.57028934,114970.0,114960.0,1.18691223]
[1754358221746,0.57028934,114970.0,114960.0,0.59375223]
[1754358221952,0.57028934,114970.0,114960.0,1.18687223]
[1754358222752,0.57028934,114970.0,114960.0,0.91699278]
[1754358222953,0.57028934,114970.0,114960.0,1.18687223]
[1754358225958,0.57028934,114970.0,114960.0,1.07729675]
[1754358227263,0.57028934,114970.0,114960.0,0.8074173]
[1754358228458,0.57028934,114970.0,114960.0,0.91699278]
[1754358238067,0.57028934,114970.0,114960.0,0.89328278]
[1754358238255,0.84016879,114970.0,114960.0,0.89328278]
[1754358239069,0.84016879,114970.0,114960.0,0.91695278]
[1754358240358,0.57028934,114970.0,114960.0,0.91695278]
[1754358240672,0.84015105,114970.0,114960.0,1.18681449]
[1754358248265,1.47081276,114970.0,114960.0,0.10957548]
[1754358248567,0.2933775,114960.0,114950.0,0.30168105]
[1754358248769,0.83310092,114960.0,114950.0,1.18717276]
[1754358248971,0.56323921,114960.0,114950.0,1.18717276]
[1754358249272,0.56323921,114960.0,114950.0,0.59417276]
[1754358249471,0.56323921,114960.0,114950.0,1.18717276]
[1754358249677,0.81273921,114960.0,114950.0,1.18717276]
[1754358249971,0.81573921,114960.0,114950.0,1.18717276]
[1754358250278,0.81573921,114960.0,114950.0,1.29680335]
[1754358251173,0.81573921,114960.0,114950.0,0.70380335]
[1754358251372,0.81573921,114960.0,114950.0,1.29684335]
[1754358252671,0.81573921,114960.0,114950.0,1.02698164]
[1754358252869,1.44640092,114960.0,114950.0,0.19383604]
[1754358253074,1.44640092,114960.0,114950.0,0.66213545]
[1754358254675,1.17663402,114960.0,114950.0,0.66213545]
[1754358257574,1.17663402,114960.0,114950.0,0.83612805]
[1754358257969,1.17663402,114960.0,114950.0,0.66213545]
[1754358259968,0.9066775,114960.0,114950.0,0.67720545]
[1754358260171,1.17663402,114960.0,114950.0,0.69983545]
[1754358268381,1.17663402,114960.0,114950.0,0.87382795]
[1754358269377,1.17663402,114960.0,114950.0,0.69983545]
[1754358270681,1.17663402,114960.0,114950.0,0.87382815]
[1754358270881,0.8590375,114960.0,114950.0,1.12115467]
[1754358271083,0.8590375,114960.0,114950.0,1.14378467]
[1754358271084,0.9066775,114960.0,114950.0,1.14378467]
[1754358271474,0.5458775,114960.0,114950.0,1.14378467]
[1754358271881,0.5458775,114960.0,114950.0,1.50458467]
[1754358272181,0.5458775,114960.0,114950.0,1.14378467]
[1754358273385,0.5458775,114960.0,114950.0,1.50458467]
[1754358274684,0.5458775,114960.0,114950.0,1.50450105]
[1754358279281,0.5458775,114960.0,114950.0,1.14370105]
[1754358280182,0.5458775,114960.0,114950.0,1.50450105]
[1754358280582,0.4264775,114960.0,114950.0,1.88400454]
[1754358281080,0.2525,114960.0,114950.0,1.88400454]
[1754358281286,0.2525,114960.0,114950.0,1.77437395]
[1754358283385,0.2525,114960.0,114950.0,1.88400454]
[1754358283783,0.2525,114960.0,114950.0,1.77437395]
[1754358284284,0.2525,114960.0,114950.0,1.93067982]
[1754358284490,0.2525,114960.0,114950.0,2.19547982]
[1754358286791,0.2525,114960.0,114950.0,2.03917395]
[1754358288496,0.2525,114960.0,114950.0,2.21315795]
[1754358290387,0.04991,114980.0,114970.0,0.1739623]
[1754358290580,0.2238572,114980.0,114970.0,1.6672681]
[1754358290785,0.2238572,114980.0,114970.0,1.7766712]
[1754358291185,0.6983872,114980.0,114970.0,1.7766712]
[1754358291585,0.6983872,114980.0,114970.0,1.6672681]
[1754358291786,0.6983872,114980.0,114970.0,1.6682681]
[1754358293797,0.6739472,114980.0,114970.0,1.68554365]
[1754358294000,0.6983872,114980.0,114970.0,1.68554365]
[1754358295098,0.6983872,114980.0,114970.0,1.41567075]
[1754358295300,0.7913372,114980.0,114970.0,1.41567075]
[1754358296198,0.7913372,114980.0,114970.0,1.68047075]
[1754358301195,0.7913372,114980.0,114970.0,1.41059785]
[1754358301395,0.6983872,114980.0,114970.0,1.68047075]
[1754358301701,0.6983872,114980.0,114970.0,1.95034365]
[1754358301702,0.5,114980.0,114970.0,1.95034365]
[1754358301901,0.5,114980.0,114970.0,2.75496855]
[1754358302293,0.2841748,115000.0,114990.0,0.1739322]
[1754358302494,0.3327248,115000.0,114990.0,1.931918]
[1754358302700,0.3814348,115000.0,114990.0,1.66181292]
[1754358303596,0.3814348,115000.0,114990.0,1.67049582]
[1754358304000,0.3379547,115000.0,114990.0,1.67049582]
[1754358304504,0.3379547,115000.0,114990.0,1.67349582]
[1754358304902,0.3379547,115000.0,114990.0,1.67549582]
[1754358310409,0.3379547,115000.0,114990.0,1.4058551]
[1754358310608,0.3379547,115000.0,114990.0,1.67549582]
[1754358310910,0.3379547,115000.0,114990.0,1.67537582]
[1754358318107,0.3379547,115000.0,114990.0,1.08285582]
[1754358318407,0.3379547,115000.0,114990.0,0.6392829]
[1754358318408,0.60759542,115000.0,114990.0,0.6392829]
[1754358318714,0.60759542,115000.0,114990.0,1.2317629]
[1754358319105,0.60759542,115000.0,114990.0,0.8709629]
[1754358319305,0.96839542,115000.0,114990.0,0.2784829]
[1754358319505,0.96839542,115000.0,114990.0,0.8709629]
[1754358319807,1.21789542,115000.0,114990.0,0.8709629]
[1754358320111,1.21789542,115000.0,114990.0,0.0136829]
[1754358320303,1.21789542,115000.0,114990.0,0.6061629]
[1754358321906,1.21789542,115000.0,114990.0,0.59748]
[1754358323311,1.71789542,115000.0,114990.0,0.59748]
[1754358325320,0.2944825,114990.0,114980.0,1.20308]
[1754358325514,1.19456394,114990.0,114980.0,1.79556]
[1754358325817,0.92492322,114990.0,114980.0,0.59248]
[1754358326714,0.92492322,114990.0,114980.0,0.59548]
[1754358327401,1.42492322,114990.0,114980.0,0.59548]
[1754358327606,1.42492322,114990.0,114980.0,0.59848]
[1754358329910,1.42492322,114990.0,114980.0,0.006]
[1754358330112,1.42492322,114990.0,114980.0,0.59852]
[1754358331816,1.67442322,114990.0,114980.0,0.59852]
[1754358338018,1.4047825,114990.0,114980.0,0.59852]
[1754358338223,1.4047825,114990.0,114980.0,0.60651]
[1754358338421,1.4047825,114990.0,114980.0,0.28363072]
[1754358338621,1.4047825,114990.0,114980.0,0.87995072]
[1754358339017,1.4047825,114990.0,114980.0,0.01399]
[1754358339319,1.4047825,114990.0,114980.0,0.61031]
[1754358339623,1.4047825,114990.0,114980.0,0.01399]
[1754358339825,1.4047825,114990.0,114980.0,0.61027]
[1754358340212,1.4047825,114990.0,114980.0,0.01399]
[1754358340418,1.4047825,114990.0,114980.0,0.61023]
[1754358345913,1.2842325,114990.0,114980.0,1.05381782]
[1754358346121,1.3550825,114990.0,114980.0,1.05381782]
[1754358346616,1.3550825,114990.0,114980.0,1.05881782]
[1754358347028,0.9469525,114990.0,114980.0,1.41961782]
[1754358347821,0.9722225,114990.0,114980.0,1.41961782]
[1754358348025,1.0417525,114990.0,114980.0,1.41961782]
[1754358349722,1.0417525,114990.0,114980.0,1.68441782]
[1754358349927,1.58103394,114990.0,114980.0,0.006]
[1754358350224,1.94183394,114990.0,114980.0,0.006]
[1754358350421,0.2214322,114970.0,114960.0,0.1094031]
[1754358350622,0.2922822,114970.0,114960.0,0.61127742]
[1754358350817,0.56192292,114970.0,114960.0,0.61127742]
[1754358351729,0.56592292,114970.0,114960.0,0.61127742]
[1754358351928,0.81942292,114970.0,114960.0,0.61127742]
[1754358352230,0.81942292,114970.0,114960.0,0.00847742]
[1754358352431,0.81942292,114970.0,114960.0,0.60312]
[1754358352730,0.81942292,114970.0,114960.0,0.00863847]
[1754358353031,0.81942292,114970.0,114960.0,0.60316]
[1754358354931,0.81942292,114970.0,114960.0,0.7205531]
[1754358355333,0.81942292,114970.0,114960.0,0.1094031]
[1754358355527,1.18022292,114970.0,114960.0,0.7122431]
[1754358356019,1.18022292,114970.0,114960.0,0.60284]
[1754358356731,0.2214475,114960.0,114950.0,0.18652855]
[1754358356929,0.92273822,114960.0,114950.0,0.17853855]
[1754358357229,0.92273822,114960.0,114950.0,0.78125855]
[1754358357930,0.92273822,114960.0,114950.0,0.67185545]
[1754358358432,0.92573822,114960.0,114950.0,0.67185545]
[1754358358822,0.92573822,114960.0,114950.0,0.06913545]
[1754358359023,0.92573822,114960.0,114940.0,0.1094031]
[1754358359024,0.1739926,114950.0,114940.0,0.1094031]
[1754358359327,0.94228487,114950.0,114940.0,0.7122431]
[1754358359632,1.44228487,114950.0,114940.0,0.7122431]
[1754358359832,1.44228487,114950.0,114940.0,0.72077837]
[1754358360319,1.44228487,114950.0,114940.0,0.72876837]
[1754358360526,1.44228487,114950.0,114940.0,0.79681835]
[1754358360934,1.69178487,114950.0,114940.0,0.79681835]
[1754358361636,1.42214415,114950.0,114940.0,0.79681835]
[1754358362336,1.42514415,114950.0,114940.0,0.68741525]
[1754358363642,1.42714415,114950.0,114940.0,0.68741525]
[1754358363940,1.69678487,114950.0,114940.0,0.68741525]
[1754358364139,1.69678487,114950.0,114940.0,0.67092998]
[1754358366028,1.42714415,114950.0,114940.0,0.68780351]